bitfinex/quotes_SOLUSD_20250617
["timestamp","ask_amount","ask_price","bid_price","bid_amount"]
[1750159625701,5.4350763,150.53,150.47,6.64584302]
[1750159625874,12.07817779,150.54,150.49,5.4350763]
[1750159626077,12.07738782,150.55,150.5,5.4350763]
[1750159626487,5.4350763,150.52,150.47,5.4350763]
[1750159626782,23.24809033,150.55,150.47,5.4350763]
[1750159626783,5.4350763,150.51,150.47,5.4350763]
[1750159627173,5.4350763,150.51,150.46,8.31073136]
[1750159627403,23.60625647,150.54,150.46,5.4350763]
[1750159627404,5.4350763,150.5,150.46,5.4350763]
[1750159627898,12.07967142,150.5,150.46,5.4350763]
[1750159628489,6.64459512,150.5,150.46,5.4350763]
[1750159628815,12.07933802,150.51,150.47,5.4350763]
[1750159629105,12.07933802,150.51,150.45,6.64655676]
[1750159629274,12.07933802,150.51,150.46,5.4350763]
[1750159630485,12.07933802,150.51,150.47,5.4350763]
[1750159631200,6.64319404,150.53,150.47,5.4350763]
[1750159631514,5.4350763,150.51,150.47,5.4350763]
[1750159631808,6.64319404,150.53,150.49,5.4350763]
[1750159632186,6.64319404,150.53,150.47,6.6458286]
[1750159632384,12.07827034,150.53,150.48,5.4350763]
[1750159632596,12.07827034,150.53,150.49,5.4350763]
[1750159633394,27.77676157,150.56,150.5,5.4350763]
[1750159633395,6.6429069,150.54,150.5,5.4350763]
[1750159633601,12.0779832,150.54,150.49,12.07997973]
[1750159633810,12.0779832,150.54,150.49,6.64490343]
[1750159633981,12.0779832,150.54,150.49,12.07997973]
[1750159634910,5.4350763,150.52,150.45,32.64672648]
[1750159635083,5.4350763,150.52,150.47,5.4350763]
[1750159635279,5.4350763,150.51,150.47,5.4350763]
[1750159635590,5.4350763,150.5,150.46,5.4350763]
[1750159635981,5.4350763,150.5,150.43,39.00059838]
[1750159635982,5.4350763,150.48,150.43,22.38253729]
[1750159636287,5.4350763,150.5,150.45,5.4350763]
[1750159636489,5.4350763,150.51,150.43,29.03008284]
[1750159636708,5.4350763,150.51,150.46,5.4350763]
[1750159636915,12.07949575,150.51,150.46,5.4350763]
[1750159637414,6.4618,150.52,150.46,5.4350763]
[1750159637415,18.54068866,150.52,150.48,5.4350763]
[1750159637598,18.54068866,150.52,150.46,6.64610317]
[1750159637804,18.54068866,150.52,150.47,5.4350763]
[1750159638197,13.10561236,150.52,150.46,6.64610317]
[1750159638397,18.54068866,150.52,150.47,5.4350763]
[1750159638707,5.4350763,150.51,150.44,6.6471683]
[1750159638909,5.4350763,150.51,150.46,5.4350763]
[1750159640003,12.07934035,150.51,150.47,5.4350763]
[1750159640890,12.07934035,150.51,150.45,6.64630694]
[1750159641086,12.07934035,150.51,150.46,5.4350763]
[1750159641598,5.4350763,150.5,150.46,5.4350763]
[1750159641803,5.4350763,150.5,150.44,6.6471683]
[1750159641994,5.4350763,150.49,150.44,6.6471683]
[1750159642325,6.64426405,150.51,150.43,29.03009085]
[1750159642326,18.64964886,150.5,150.43,29.03009085]
[1750159642607,6.60396157,150.52,150.48,5.4350763]
[1750159642608,13.10561662,150.52,150.48,5.4350763]
[1750159642918,6.4618,150.52,150.48,5.4350763]
[1750159643211,38.07841418,150.53,150.44,0.28432314]
[1750159643414,38.07841418,150.53,150.49,5.4350763]
[1750159643711,32.64333788,150.53,150.49,5.4350763]
[1750159643921,38.07841418,150.53,150.49,5.4350763]
[1750159644397,20.17744886,150.55,150.49,5.4350763]
[1750159644600,6.9628763,150.55,150.51,5.4350763]
[1750159645599,13.60534743,150.55,150.51,5.4350763]
[1750159645800,1.5278,150.55,150.51,5.4350763]
[1750159646195,1.5278,150.55,150.47,23.26045058]
[1750159646516,1.5278,150.55,150.51,5.4350763]
[1750159646708,6.428,150.56,150.52,5.4350763]
[1750159646908,6.428,150.56,150.53,5.4350763]
[1750159647211,12.07682618,150.57,150.53,5.4350763]
[1750159647610,6.64174988,150.57,150.53,5.4350763]
[1750159647793,12.07682618,150.57,150.53,5.4350763]
[1750159648117,32.64101262,150.58,150.54,5.4350763]
[1750159649029,38.07608892,150.58,150.54,5.4350763]
[1750159651051,26.0,150.58,150.54,5.4350763]
[1750159651334,13.70078177,150.59,150.55,5.4350763]
[1750159652043,13.70078177,150.59,150.5,23.25581395]
[1750159652356,13.70078177,150.59,150.55,5.4350763]
[1750159653535,8.26570547,150.59,150.54,12.0777964]
[1750159653721,5.4350763,150.58,150.54,12.0777964]
[1750159653915,8.26570547,150.59,150.54,12.0777964]
[1750159654115,5.4350763,150.58,150.54,12.0777964]
[1750159654326,13.70078177,150.59,150.55,5.4350763]
[1750159654838,8.26570547,150.59,150.54,5.4350763]
[1750159655132,5.4350763,150.58,150.54,5.4350763]
[1750159655325,12.07622077,150.58,150.53,6.64317921]
[1750159655545,12.07622077,150.58,150.54,5.4350763]
[1750159655908,12.07622077,150.58,150.53,6.64317921]
[1750159656106,12.07622077,150.58,150.54,5.4350763]
[1750159658536,12.07622077,150.58,150.5,23.25581395]
[1750159658837,12.07622077,150.58,150.54,5.4350763]
[1750159659935,12.07622077,150.58,150.53,5.4350763]
[1750159660135,12.07622077,150.58,150.54,5.4350763]
[1750159660438,6.64114447,150.58,150.54,5.4350763]
[1750159660641,12.07622077,150.58,150.54,5.4350763]
[1750159660945,12.07622077,150.58,150.52,6.64341774]
[1750159660946,6.64114447,150.58,150.55,5.4350763]
[1750159661737,6.64114447,150.58,150.54,5.4350763]
[1750159662232,13.70079053,150.59,150.55,5.4350763]
[1750159662814,12.07579053,150.59,150.55,5.4350763]
[1750159663228,5.4350763,150.59,150.55,5.4350763]
[1750159663431,12.07569586,150.59,150.55,5.4350763]
[1750159663617,12.07569586,150.59,150.54,6.64269715]
[1750159663821,36.21137681,150.61,150.54,6.64269715]
[1750159663822,35.92705367,150.61,150.57,5.4350763]
[1750159664111,17.27740481,150.61,150.58,5.4350763]
[1750159666147,17.27740481,150.61,150.57,6.64141589]
[1750159666348,17.27740481,150.61,150.59,5.4350763]
[1750159671166,17.27740481,150.61,150.58,12.07591738]
[1750159672229,17.27740481,150.61,150.59,5.4350763]
[1750159673332,17.27740481,150.61,150.6,5.4350763]
[1750159676350,17.27740481,150.61,150.6,6.64010624]
[1750159676524,17.27740481,150.61,150.6,12.07518254]
[1750159677358,17.27740481,150.61,150.6,5.4350763]
[1750159677727,17.27740481,150.61,150.59,6.64042716]
[1750159677926,17.27740481,150.61,150.6,5.4350763]
[1750159679459,17.27740481,150.61,150.6,12.07518254]
[1750159680266,17.27740481,150.61,150.6,6.64010624]
[1750159680477,17.27740481,150.61,150.6,12.07518254]
[1750159680860,17.27740481,150.61,150.6,5.4350763]
[1750159681070,17.27740481,150.61,150.56,5.4350763]
[1750159681268,29.35222575,150.61,150.56,5.4350763]
[1750159681576,29.35222575,150.61,150.55,12.52214805]
[1750159681577,5.4350763,150.57,150.55,5.88]
[1750159681784,5.4350763,150.56,150.51,5.4350763]
[1750159681951,27.6404,150.58,150.5,12.52439366]
[1750159681952,5.4350763,150.55,150.5,12.52439366]
[1750159682144,5.4350763,150.55,150.51,5.4350763]
[1750159682571,5.4350763,150.54,150.5,12.52439366]
[1750159682767,6.64204961,150.56,150.51,5.4350763]
[1750159683078,6.64204961,150.56,150.53,5.4350763]
[1750159683657,30.72627678,150.57,150.53,5.4350763]
[1750159685074,27.6404,150.58,150.53,5.4350763]
[1750159685075,39.7166048,150.58,150.53,5.4350763]
[1750159685449,5.4350763,150.57,150.53,5.4350763]
[1750159686180,5.4350763,150.57,150.52,6.64346679]
[1750159686386,34.2815285,150.58,150.52,12.07854309]
[1750159686561,5.4350763,150.56,150.52,12.07854309]
[1750159687069,12.07703202,150.56,150.52,5.4350763]
[1750159689279,5.4350763,150.57,150.53,5.4350763]
[1750159689452,8.2817882,150.58,150.54,5.4350763]
[1750159690757,6.6413882,150.58,150.54,5.4350763]
[1750159691074,12.0764645,150.58,150.54,5.4350763]
[1750159691653,6.6413882,150.58,150.54,5.4350763]
[1750159693884,31.4350763,150.6,150.55,5.4350763]
[1750159694176,31.4350763,150.6,150.56,5.4350763]
[1750159695069,5.4350763,150.59,150.55,5.4350763]
[1750159695660,38.07535501,150.6,150.56,5.4350763]
[1750159696160,38.07535501,150.6,150.51,23.25426881]
[1750159696367,38.07535501,150.6,150.56,5.4350763]
[1750159696553,38.07535501,150.6,150.55,6.64214693]
[1750159696755,38.07535501,150.6,150.56,5.4350763]
[1750159697260,48.00193394,150.61,150.56,5.4350763]
[1750159697579,29.35228508,150.61,150.56,5.4350763]
[1750159697777,23.91720878,150.61,150.56,5.4350763]
[1750159697978,17.27740481,150.61,150.6,5.4350763]
[1750159700459,17.27740481,150.61,150.59,6.64052202]
[1750159700657,17.27740481,150.61,150.6,5.4350763]
[1750159704184,17.27740481,150.61,150.59,5.4350763]
[1750159705871,17.27740481,150.61,150.6,5.4350763]
[1750159707673,17.27740481,150.61,150.58,6.64096794]
[1750159707878,17.27740481,150.61,150.59,5.4350763]
[1750159709505,17.27740481,150.61,150.57,6.64131737]
[1750159709671,17.27740481,150.61,150.59,5.4350763]
[1750159710903,17.27740481,150.61,150.6,5.4350763]
[1750159711206,17.27740481,150.61,150.58,6.64092917]
[1750159711207,17.27740481,150.61,150.59,5.4350763]
[1750159712778,5.4350763,150.6,150.53,1.5919]
[1750159713101,5.4350763,150.58,150.54,5.4350763]
[1750159713308,5.4350763,150.6,150.55,5.4350763]
[1750159713895,12.07577279,150.59,150.55,5.4350763]
[1750159714300,6.64069649,150.59,150.55,5.4350763]
[1750159714601,12.07577279,150.59,150.55,5.4350763]
[1750159715602,6.64069649,150.59,150.55,5.4350763]
[1750159715989,6.64069649,150.59,150.56,5.4350763]
[1750159716201,6.64069649,150.59,150.53,7.4519]
[1750159716202,17.27740481,150.61,150.58,5.4350763]
[1750159716399,17.27740481,150.61,150.54,6.64275275]
[1750159716400,17.27740481,150.61,150.57,5.4350763]
[1750159717412,23.91714663,150.61,150.57,5.4350763]
[1750159717714,29.35222293,150.61,150.57,5.4350763]
[1750159719802,23.91714663,150.61,150.56,17.93689425]
[1750159720006,29.35222293,150.61,150.56,17.93689425]
[1750159720208,5.4350763,150.6,150.56,11.2950763]
[1750159721097,5.4350763,150.6,150.56,5.86]
[1750159721300,23.91714663,150.61,150.56,5.86]
[1750159721516,5.4350763,150.6,150.56,5.86]
[1750159722224,12.07519331,150.6,150.56,5.86]
[1750159723935,5.4350763,150.59,150.56,5.86]
[1750159724334,12.07519331,150.6,150.56,5.86]
[1750159724635,6.64011701,150.6,150.56,5.86]
[1750159724799,12.07519331,150.6,150.56,5.86]
[1750159728535,6.64011701,150.6,150.56,5.86]
[1750159728741,12.07519331,150.6,150.56,5.86]
[1750159730825,12.07519331,150.6,150.56,11.2950763]
[1750159734753,12.07519331,150.6,150.56,5.86]
[1750159735965,5.4350763,150.57,150.56,5.86]
[1750159736853,5.4350763,150.57,150.53,5.4350763]
[1750159737158,5.4350763,150.58,150.54,5.4350763]
[1750159737346,5.4350763,150.59,150.55,5.4350763]
[1750159737722,18.54048195,150.6,150.55,5.4350763]
[1750159738128,18.54048195,150.6,150.54,6.64273467]
[1750159738129,13.10540565,150.6,150.54,6.64273467]
[1750159738327,5.4350763,150.59,150.55,5.4350763]
[1750159738563,18.54048195,150.6,150.53,6.64304024]
[1750159738731,18.54048195,150.6,150.56,5.4350763]
[1750159739158,18.54048195,150.6,150.53,6.64304024]
[1750159739159,5.4350763,150.59,150.53,6.64304024]
[1750159739453,12.0758807,150.59,150.55,5.4350763]
[1750159740030,6.46528864,150.6,150.56,5.4350763]
[1750159740241,23.91733554,150.61,150.57,5.4350763]
[1750159740432,23.91733554,150.61,150.55,6.64226851]
[1750159740653,23.91733554,150.61,150.57,5.4350763]
[1750159741358,17.27740481,150.61,150.58,5.4350763]
[1750159741546,23.91717385,150.61,150.58,5.4350763]
[1750159743357,17.27740481,150.61,150.59,5.4350763]
[1750159743558,17.27740481,150.61,150.6,5.4350763]
[1750159743861,17.27740481,150.61,150.58,6.64095725]
[1750159744032,17.27740481,150.61,150.6,5.4350763]
[1750159747636,17.27740481,150.61,150.58,6.64095725]
[1750159747835,17.27740481,150.61,150.6,5.4350763]
[1750159749358,17.27740481,150.61,150.59,6.64054674]
[1750159749527,17.27740481,150.61,150.6,5.4350763]
[1750159750359,17.27740481,150.61,150.59,6.64054674]
[1750159750655,17.27740481,150.61,150.6,12.07518254]
[1750159753786,17.27740481,150.61,150.6,6.64010624]
[1750159754074,17.27740481,150.61,150.6,12.07518254]
[1750159756888,17.27740481,150.61,150.6,6.64010624]
[1750159757054,17.27740481,150.61,150.59,5.4350763]
[1750159757876,17.27740481,150.61,150.6,5.4350763]
[1750159760582,17.27740481,150.61,150.6,12.07518254]
[1750159764162,6.63707154,150.67,150.6,12.07518254]
[1750159764363,6.63707154,150.67,150.64,5.4350763]
[1750159765483,6.63707154,150.67,150.62,12.4589916]
[1750159765484,5.4350763,150.69,150.62,5.82]
[1750159765687,5.4350763,150.67,150.62,11.2550763]
[1750159766062,5.4350763,150.66,150.62,11.2550763]
[1750159766365,5.4350763,150.64,150.62,5.82]
[1750159766758,5.4350763,150.65,150.62,5.82]
[1750159767459,14.73997874,150.66,150.62,5.82]
[1750159767654,5.4350763,150.65,150.62,5.82]
[1750159768982,5.4350763,150.64,150.62,5.82]
[1750159769693,5.4350763,150.63,150.62,5.82]
[1750159771567,5.4350763,150.64,150.62,5.82]
[1750159773491,12.07358203,150.64,150.62,5.82]
[1750159775391,20.1748162,150.66,150.62,5.82]
[1750159775565,5.4350763,150.65,150.62,5.82]
[1750159775766,5.4350763,150.64,150.62,5.82]
[1750159778692,6.63844329,150.64,150.62,5.82]
[1750159778994,5.4350763,150.63,150.62,5.82]
[1750159779794,12.07386007,150.63,150.62,5.82]
[1750159780770,25.28755128,150.65,150.62,5.82]
[1750159780965,5.4350763,150.64,150.62,5.82]
[1750159782091,12.07369365,150.64,150.62,5.82]
[1750159783390,5.4350763,150.64,150.62,5.82]
[1750159783694,5.4350763,150.64,150.6,12.07513335]
[1750159784493,6.63809301,150.65,150.6,12.07513335]
[1750159784690,5.4350763,150.64,150.6,12.07513335]
[1750159785191,6.6383927,150.64,150.6,6.64005705]
[1750159785395,12.073469,150.64,150.6,12.07513335]
[1750159786066,12.073469,150.64,150.59,12.07543225]
[1750159786067,5.4350763,150.63,150.59,12.07543225]
[1750159786793,5.4350763,150.62,150.58,17.89592307]
[1750159787371,6.63887556,150.63,150.58,17.89592307]
[1750159787372,5.4350763,150.63,150.58,17.89592307]
[1750159787693,5.4350763,150.63,150.59,5.4350763]
[1750159787995,11.59187302,150.64,150.59,5.4350763]
[1750159788189,5.4350763,150.63,150.59,5.4350763]
[1750159788693,5.4350763,150.63,150.59,12.07550916]
[1750159789083,5.4350763,150.62,150.59,6.64043286]
[1750159789387,5.4350763,150.63,150.59,6.64043286]
[1750159789587,5.4350763,150.63,150.59,12.07550916]
[1750159790693,11.59187302,150.64,150.59,12.07550916]
[1750159790882,5.4350763,150.63,150.59,12.07550916]
[1750159791082,11.59187302,150.64,150.59,12.07550916]
[1750159791278,5.4350763,150.63,150.59,12.07550916]
[1750159792476,6.63854281,150.64,150.59,12.07550916]
[1750159792682,17.02694932,150.64,150.59,12.07550916]
[1750159792897,12.07361911,150.64,150.59,12.07550916]
[1750159793096,4.95333021,150.64,150.6,5.4350763]
[1750159793405,4.95333021,150.65,150.63,5.4350763]
[1750159793698,12.07237352,150.67,150.59,23.24180081]
[1750159793699,4.95333021,150.66,150.62,5.4350763]
[1750159794305,10.38840651,150.67,150.59,23.24180081]
[1750159794504,4.95333021,150.66,150.62,5.4350763]
[1750159794808,10.38840651,150.66,150.59,23.24180081]
[1750159794988,5.4350763,150.66,150.62,5.4350763]
[1750159795188,10.38840651,150.66,150.62,12.0739569]
[1750159795495,5.4350763,150.66,150.62,12.0739569]
[1750159795703,10.38840651,150.66,150.62,12.0739569]
[1750159796306,17.02596202,150.66,150.59,16.60136795]
[1750159796487,5.4350763,150.64,150.59,6.64054718]
[1750159796690,5.4350763,150.64,150.6,5.4350763]
[1750159797407,4.95333021,150.65,150.61,5.4350763]
[1750159797706,4.95333021,150.67,150.62,5.4350763]
[1750159797880,10.38840651,150.66,150.61,5.4350763]
[1750159798086,5.4350763,150.65,150.61,5.4350763]
[1750159798987,17.02638176,150.65,150.61,5.4350763]
[1750159799281,12.07305155,150.65,150.61,5.4350763]
[1750159799684,4.95333021,150.65,150.63,5.4350763]
[1750159799880,4.95333021,150.66,150.63,5.4350763]
[1750159800309,10.38840651,150.66,150.62,5.4350763]
[1750159800486,5.4350763,150.66,150.62,5.4350763]
[1750159800687,10.38840651,150.66,150.62,5.4350763]
[1750159800993,10.38840651,150.66,150.61,6.63943748]
[1750159800994,5.4350763,150.63,150.58,5.82]
[1750159801194,23.60297907,150.65,150.59,5.4350763]
[1750159801393,10.38840651,150.64,150.59,5.4350763]
[1750159801582,10.38840651,150.64,150.58,5.82]
[1750159801787,10.38840651,150.64,150.59,5.4350763]
[1750159802098,5.4350763,150.63,150.58,5.82]
[1750159802304,5.4350763,150.63,150.58,11.2550763]
[1750159802524,5.4350763,150.63,150.58,5.82]
[1750159802691,17.02718993,150.64,150.6,5.4350763]
[1750159803412,12.07385972,150.64,150.6,5.4350763]
[1750159804091,17.02718993,150.64,150.59,5.4350763]
[1750159804913,17.02718993,150.64,150.6,5.4350763]
[1750159805117,12.07385972,150.64,150.6,5.4350763]
[1750159805293,12.07385972,150.64,150.6,12.07518005]
[1750159805495,4.95333021,150.65,150.61,5.4350763]
[1750159805816,4.95333021,150.66,150.63,5.4350763]
[1750159806183,10.38840651,150.66,150.62,5.4350763]
[1750159807017,10.38840651,150.66,150.61,6.63931996]
[1750159807201,11.59083421,150.66,150.62,5.4350763]
[1750159807399,12.0725803,150.66,150.62,5.4350763]
[1750159807709,17.02591051,150.66,150.62,5.4350763]
[1750159808015,12.0725803,150.66,150.62,5.4350763]
[1750159808219,5.4350763,150.66,150.62,5.4350763]
[1750159809098,5.4350763,150.66,150.62,12.0742395]
[1750159809617,17.02557759,150.67,150.62,12.0742395]
[1750159810502,11.59050129,150.67,150.62,12.0742395]
[1750159810818,17.02557759,150.67,150.62,12.0742395]
[1750159811023,5.4350763,150.66,150.62,12.0742395]
[1750159811188,11.59050129,150.67,150.62,12.0742395]
[1750159811706,5.4350763,150.66,150.62,12.0742395]
[1750159812119,11.59050129,150.67,150.62,12.0742395]
[1750159812320,5.4350763,150.66,150.62,12.0742395]
[1750159812890,11.60189482,150.67,150.62,12.0742395]
[1750159813092,6.63717108,150.67,150.63,5.4350763]
[1750159813292,17.03621798,150.67,150.63,5.4350763]
[1750159813520,17.03621798,150.67,150.63,12.07378794]
[1750159814035,17.03622717,150.67,150.63,12.07378794]
[1750159814201,12.07224738,150.67,150.63,5.4350763]
[1750159814518,4.96240527,150.67,150.64,5.4350763]
[1750159814816,38.07178384,150.68,150.63,6.63863182]
[1750159815015,5.4350763,150.67,150.63,12.07370812]
[1750159816221,6.63702545,150.67,150.63,12.07370812]
[1750159816411,12.07210175,150.67,150.63,12.07370812]
[1750159817207,12.07210175,150.67,150.63,5.4350763]
[1750159818504,6.63702545,150.67,150.63,5.4350763]
[1750159818916,5.4350763,150.66,150.62,5.4350763]
[1750159819120,12.07260946,150.66,150.62,5.4350763]
[1750159819620,6.63753316,150.66,150.62,5.4350763]
[1750159820834,6.63753316,150.66,150.61,12.47934976]
[1750159821013,6.63753316,150.66,150.62,5.4350763]
[1750159821603,6.6370213,150.67,150.62,5.4350763]
[1750159821801,5.4350763,150.66,150.62,5.4350763]
[1750159822122,5.4350763,150.65,150.61,11.2750763]
[1750159822507,11.5933664,150.67,150.61,11.2750763]
[1750159822705,5.4350763,150.65,150.61,11.2750763]
[1750159822924,5.4350763,150.64,150.61,5.84]
[1750159823615,12.07373307,150.64,150.61,5.84]
[1750159824803,6.63865677,150.64,150.61,5.84]
[1750159826040,6.63865677,150.64,150.61,11.2750763]
[1750159826229,12.07253813,150.66,150.62,5.4350763]
[1750159826402,12.07253813,150.66,150.61,5.84]
[1750159826740,12.07253813,150.66,150.62,5.4350763]
[1750159828229,6.63746183,150.66,150.63,5.4350763]
[1750159829334,6.63720924,150.67,150.64,5.4350763]
[1750159829538,6.63720924,150.67,150.62,6.63922026]
[1750159829539,6.63720924,150.67,150.63,5.4350763]
[1750159830220,37.59273604,150.68,150.64,5.4350763]
[1750159830421,38.07182615,150.68,150.64,5.4350763]
[1750159832038,38.07182615,150.68,150.62,6.63922026]
[1750159832336,38.07182615,150.68,150.64,5.4350763]
[1750159833035,12.07220089,150.67,150.63,5.4350763]
[1750159833624,6.63712459,150.67,150.62,5.4350763]
[1750159833841,5.4350763,150.66,150.62,5.4350763]
[1750159834722,5.4350763,150.65,150.61,11.2750763]
[1750159834923,12.07416816,150.63,150.58,5.82]
[1750159835231,5.4350763,150.6,150.58,5.82]
[1750159835413,6.63909186,150.63,150.58,5.82]
[1750159835414,5.4350763,150.61,150.58,5.82]
[1750159835730,5.4350763,150.62,150.58,5.82]
[1750159835938,5.4350763,150.62,150.58,11.2550763]
[1750159836319,12.07416816,150.63,150.59,5.4350763]
[1750159836521,6.63909186,150.63,150.59,5.4350763]
[1750159836723,12.07416816,150.63,150.59,5.4350763]
[1750159836927,6.63909186,150.63,150.59,5.4350763]
[1750159839122,11.59909353,150.64,150.6,5.4350763]
[1750159839418,6.63851966,150.64,150.6,5.4350763]
[1750159841029,5.4350763,150.63,150.59,5.4350763]
[1750159841337,5.4350763,150.6,150.58,5.82]
[1750159841921,5.4350763,150.61,150.58,5.82]
[1750159843140,12.07490046,150.61,150.58,5.82]
[1750159843945,12.0744703,150.62,150.58,11.2550763]
[1750159844256,5.4350763,150.61,150.58,5.82]
[1750159845447,12.0744703,150.62,150.58,11.2550763]
[1750159845633,24.08472516,150.61,150.56,5.4350763]
[1750159845949,18.64964886,150.61,150.56,11.2550763]
[1750159846247,24.08472516,150.61,150.56,11.2550763]
[1750159846723,6.64010624,150.6,150.56,11.2550763]
[1750159847251,12.07518254,150.6,150.56,11.2550763]
[1750159847437,5.4350763,150.59,150.56,5.82]
[1750159848428,23.60672272,150.61,150.58,31.4350763]
[1750159848429,4.95707386,150.61,150.58,31.4350763]
[1750159848641,6.2955,150.65,150.6,5.4350763]
[1750159848842,6.2955,150.65,150.58,26.0]
[1750159848843,6.2955,150.65,150.64,5.4350763]
[1750159849151,32.6370213,150.67,150.64,5.4350763]
[1750159849152,11.59409516,150.67,150.64,5.4350763]
[1750159849353,6.6370213,150.67,150.64,5.4350763]
[1750159850940,11.59379423,150.68,150.65,5.4350763]
[1750159851456,11.59379423,150.68,150.64,5.4350763]
[1750159851749,59.23456684,150.69,150.65,5.4350763]
[1750159852155,59.23456684,150.69,150.63,6.63873882]
[1750159852455,59.23456684,150.69,150.65,5.4350763]
[1750159852456,59.23450437,150.69,150.65,5.4350763]
[1750159854249,52.59834886,150.69,150.66,5.4350763]
[1750159854464,59.23450641,150.69,150.66,5.4350763]
[1750159854754,33.9487,150.69,150.66,5.4350763]
[1750159855424,33.9487,150.69,150.67,5.4350763]
[1750159855425,26.0,150.69,150.67,5.4350763]
[1750159856364,26.0,150.69,150.66,5.4350763]
[1750159857748,22.29239195,150.71,150.68,5.4350763]
[1750159857749,16.71515408,150.71,150.68,5.4350763]
[1750159857956,16.71515408,150.71,150.64,5.4350763]
[1750159857957,16.71515408,150.71,150.69,5.4350763]
[1750159858445,16.71515408,150.71,150.68,5.4350763]
[1750159858757,16.71515408,150.71,150.69,5.4350763]
[1750159859255,16.58365734,150.76,150.69,5.4350763]
[1750159859256,12.88941852,150.77,150.7,5.4350763]
[1750159859459,12.88941852,150.77,150.73,5.4350763]
[1750159859641,5.4350763,150.75,150.69,1.5306]
[1750159859957,5.4350763,150.74,150.68,5.82]
[1750159860263,24.08472516,150.76,150.71,5.4350763]
[1750159860434,27.73596157,150.78,150.74,5.4350763]
[1750159860435,1.5938,150.78,150.74,5.4350763]
[1750159860754,30.717234,150.78,150.74,5.4350763]
[1750159860972,30.717234,150.78,150.72,6.63476487]
[1750159861262,30.717234,150.78,150.74,5.4350763]
[1750159862654,6.63250884,150.78,150.74,5.4350763]
[1750159863162,18.16296281,150.81,150.76,5.4350763]
[1750159863333,20.24104886,150.82,150.79,5.4350763]
[1750159863334,6.63057508,150.82,150.79,5.4350763]
[1750159863656,25.28022394,150.82,150.78,5.4350763]
[1750159863859,25.28022394,150.82,150.79,5.4350763]
[1750159864038,30.71530024,150.82,150.77,5.4350763]
[1750159864375,59.10549717,150.84,150.74,5.82]
[1750159864376,12.06521315,150.83,150.74,5.82]
[1750159864539,5.4350763,150.82,150.78,5.4350763]
[1750159865257,5.4350763,150.81,150.77,5.4350763]
[1750159866370,5.4350763,150.81,150.75,6.63346534]
[1750159866558,5.4350763,150.8,150.76,5.4350763]
[1750159867077,12.06629023,150.81,150.77,5.4350763]
[1750159867373,12.06629023,150.81,150.76,12.45305811]
[1750159867541,12.06629023,150.81,150.77,5.4350763]
[1750159868158,12.06629023,150.81,150.76,5.82]
[1750159868159,5.4350763,150.8,150.76,5.82]
[1750159868558,5.4350763,150.79,150.76,5.82]
[1750159869557,12.06659607,150.8,150.76,11.2550763]
[1750159870083,6.63151977,150.8,150.76,5.4350763]
[1750159870257,12.06549666,150.82,150.78,5.4350763]
[1750159871140,6.63042036,150.82,150.78,5.4350763]
[1750159871569,30.71485898,150.83,150.78,5.4350763]
[1750159871868,6.63013382,150.83,150.8,5.4350763]
[1750159872067,12.06521012,150.83,150.79,5.4350763]
[1750159873468,54.5954703,150.84,150.8,5.4350763]
[1750159875943,42.53069661,150.84,150.8,5.4350763]
[1750159876146,47.96577291,150.84,150.8,5.4350763]
[1750159876346,16.53069661,150.84,150.83,5.4350763]
[1750159877475,12.06298462,150.88,150.83,5.4350763]
[1750159877775,6.62790832,150.88,150.84,5.4350763]
[1750159877976,12.06298462,150.88,150.84,5.4350763]
[1750159878163,12.06298462,150.88,150.82,6.63028611]
[1750159878164,25.27709548,150.89,150.85,5.4350763]
[1750159878661,30.71217178,150.89,150.85,5.4350763]
[1750159879144,25.27709548,150.89,150.86,5.4350763]
[1750159879349,6.62705355,150.9,150.87,5.4350763]
[1750159879654,6.62705355,150.9,150.88,5.4350763]
[1750159879966,50.08472516,150.89,150.82,1.6234]
[1750159880149,50.08472516,150.89,150.84,5.4350763]
[1750159880150,5.4350763,150.88,150.84,5.4350763]
[1750159880843,5.4350763,150.88,150.83,5.84]
[1750159881080,5.4350763,150.87,150.79,26.0]
[1750159881278,8.21291341,150.89,150.86,5.4350763]
[1750159881455,8.21291341,150.89,150.83,26.0]
[1750159881656,8.21291341,150.89,150.87,5.4350763]
[1750159882858,8.21291341,150.89,150.84,6.62952001]
[1750159883171,8.21291341,150.89,150.83,26.0]
[1750159883172,8.21291341,150.89,150.85,5.4350763]
[1750159883371,8.21291341,150.89,150.86,5.4350763]
[1750159884263,8.21291341,150.89,150.83,6.62983406]
[1750159884476,6.62761341,150.89,150.86,5.4350763]
[1750159884861,6.62761341,150.89,150.87,5.4350763]
[1750159885281,6.62690523,150.9,150.87,5.4350763]
[1750159885964,6.62690523,150.9,150.86,5.4350763]
[1750159886360,6.62650269,150.91,150.87,5.4350763]
[1750159887081,12.06157899,150.91,150.84,6.62951506]
[1750159887373,12.06227562,150.9,150.86,5.4350763]
[1750159887579,6.62719932,150.9,150.86,5.4350763]
[1750159887784,6.62719932,150.9,150.87,5.4350763]